[Event "Late-Titled-Tuesday-Blitz-March-05-2024"]
[Site "Chess.com"]
[Date "2024.03.05"]
[Round "5"]
[White "IlanSchnaider"]
[Black "SergioMoralesG"]
[Result "1-0"]
[WhiteElo "2644"]
[BlackElo "2481"]
[TimeControl "180+1"]
[EndTime "14:55:32 PST"]
[Termination "IlanSchnaider won by resignation"]

1. e4 {[%clk 0:03:00.9]} 1... c5 {[%clk 0:02:59.1]} 2. Nf3 {[%clk 0:03:00.3]}
2... e6 {[%clk 0:02:59.7]} 3. d4 {[%clk 0:02:58.8]} 3... cxd4 {[%clk 0:03:00.6]}
4. Nxd4 {[%clk 0:02:58.4]} 4... Nc6 {[%clk 0:03:01.3]} 5. Nc3 {[%clk 0:02:58]}
5... Qc7 {[%clk 0:03:01.8]} 6. Be2 {[%clk 0:02:57.3]} 6... a6 {[%clk 0:03:01.7]}
7. Qd3 {[%clk 0:02:55.3]} 7... Nf6 {[%clk 0:02:56.6]} 8. Nxc6 {[%clk 0:02:54.7]}
8... bxc6 {[%clk 0:02:56.7]} 9. Qg3 {[%clk 0:02:46.6]} 9... Qxg3 {[%clk
0:02:51.2]} 10. hxg3 {[%clk 0:02:47.5]} 10... d5 {[%clk 0:02:51.4]} 11. g4
{[%clk 0:02:47.8]} 11... Nxe4 {[%clk 0:02:37]} 12. Nxe4 {[%clk 0:02:45.1]} 12...
dxe4 {[%clk 0:02:37.9]} 13. g5 {[%clk 0:02:45.4]} 13... Bc5 {[%clk 0:02:14.7]}
14. Bd2 {[%clk 0:02:20.4]} 14... Ke7 {[%clk 0:01:44.8]} 15. Bc3 {[%clk
0:02:17.7]} 15... f6 {[%clk 0:01:44.6]} 16. O-O-O {[%clk 0:01:48.1]} 16... Bxf2
{[%clk 0:01:38]} 17. gxf6+ {[%clk 0:01:40.5]} 17... gxf6 {[%clk 0:01:37.9]} 18.
Rdf1 {[%clk 0:01:40.9]} 18... Be3+ {[%clk 0:01:10.6]} 19. Kb1 {[%clk 0:01:40.8]}
19... e5 {[%clk 0:01:10.9]} 20. Rh4 {[%clk 0:01:16.5]} 20... Be6 {[%clk
0:00:45.6]} 21. Rxe4 {[%clk 0:01:13.6]} 21... Bg5 {[%clk 0:00:45.6]} 22. Bb4+
{[%clk 0:01:01.3]} 22... c5 {[%clk 0:00:13.1]} 23. Bxc5+ {[%clk 0:01:00]} 23...
Kd7 {[%clk 0:00:13.8]} 24. Ba3 {[%clk 0:00:58.6]} 24... Rhd8 {[%clk 0:00:10.5]}
25. Bf3 {[%clk 0:00:57.9]} 25... Rab8 {[%clk 0:00:09.6]} 26. Rd1+ {[%clk
0:00:57.2]} 26... Kc7 {[%clk 0:00:10]} 27. Rde1 {[%clk 0:00:47.8]} 27... Rd2
{[%clk 0:00:10]} 28. Ra4 {[%clk 0:00:44.8]} 28... Rbd8 {[%clk 0:00:09.5]} 29.
Bb4 {[%clk 0:00:41.4]} 29... R2d4 {[%clk 0:00:08.5]} 30. Ba5+ {[%clk 0:00:40.5]}
30... Kb8 {[%clk 0:00:07.4]} 31. Ra3 {[%clk 0:00:34.2]} 31... R8d7 {[%clk
0:00:06.2]} 32. Bc3 {[%clk 0:00:33.4]} 32... R4d6 {[%clk 0:00:05]} 33. Bb4
{[%clk 0:00:34]} 33... Rd4 {[%clk 0:00:04.8]} 34. Bc5 {[%clk 0:00:25.2]} 34...
Rd2 {[%clk 0:00:04.9]} 35. Rxa6 {[%clk 0:00:22.6]} 35... Bd5 {[%clk 0:00:05]}
36. Bg4 {[%clk 0:00:16.7]} 36... Rd8 {[%clk 0:00:02.6]} 37. Rb6+ {[%clk
0:00:08]} 37... Kc7 {[%clk 0:00:02.1]} 38. Rb4 {[%clk 0:00:08.6]} 38... Bc6
{[%clk 0:00:02.5]} 39. Bb6+ {[%clk 0:00:08.8]} 39... Kb7 {[%clk 0:00:02.2]} 40.
Bxd8+ {[%clk 0:00:09.3]} 40... Ka6 {[%clk 0:00:02.3]} 41. Rb6+ {[%clk
0:00:09.5]} 41... Ka7 {[%clk 0:00:02.1]} 42. Rxc6 {[%clk 0:00:10.1]} 42... Rxd8
{[%clk 0:00:02]} 43. Rc7+ {[%clk 0:00:10.6]} 43... Kb6 {[%clk 0:00:02.1]} 44.
Rxh7 {[%clk 0:00:11.3]} 44... Bd2 {[%clk 0:00:01.9]} 45. Rd1 {[%clk 0:00:11.1]}
45... Rg8 {[%clk 0:00:01.9]} 46. Rxd2 {[%clk 0:00:10.9]} 46... Rxg4 {[%clk
0:00:02.8]} 47. Rh1 {[%clk 0:00:11.1]} 47... Re4 {[%clk 0:00:03.7]} 48. b3
{[%clk 0:00:11.4]} 48... Kc6 {[%clk 0:00:04.5]} 49. Kb2 {[%clk 0:00:11.9]} 49...
f5 {[%clk 0:00:05.4]} 50. Rhd1 {[%clk 0:00:11.7]} 50... f4 {[%clk 0:00:06.3]}
51. Rd6+ {[%clk 0:00:11.8]} 51... Kc7 {[%clk 0:00:07.2]} 52. Rh6 {[%clk
0:00:11.6]} 52... Re2 {[%clk 0:00:07.7]} 53. Rdd6 {[%clk 0:00:10.1]} 53... Rxg2
{[%clk 0:00:07.4]} 54. Rdg6 {[%clk 0:00:10.5]} 54... Kd7 {[%clk 0:00:08.3]} 55.
Rxg2 {[%clk 0:00:10.5]} 1-0

[Event "Late-Titled-Tuesday-Blitz-March-05-2024"]
[Site "Chess.com"]
[Date "2024.03.05"]
[Round "5"]
[White "Bugcrusher"]
[Black "BebeBonito2022"]
[Result "1-0"]
[WhiteElo "2529"]
[BlackElo "2303"]
[TimeControl "180+1"]
[EndTime "14:55:34 PST"]
[Termination "Bugcrusher won on time"]

1. e4 {[%clk 0:02:52.7]} 1... e5 {[%clk 0:03:00]} 2. Nf3 {[%clk 0:02:49.9]} 2...
Nc6 {[%clk 0:03:00.2]} 3. c3 {[%clk 0:02:50.1]} 3... d5 {[%clk 0:02:59.6]} 4.
Qa4 {[%clk 0:02:46.7]} 4... f6 {[%clk 0:02:55.5]} 5. exd5 {[%clk 0:02:43.8]}
5... Qxd5 {[%clk 0:02:47]} 6. d4 {[%clk 0:02:35.8]} 6... Bd7 {[%clk 0:02:37.4]}
7. Qb3 {[%clk 0:02:12.6]} 7... Qxb3 {[%clk 0:02:30.3]} 8. axb3 {[%clk
0:02:11.9]} 8... exd4 {[%clk 0:02:30.6]} 9. cxd4 {[%clk 0:02:11.3]} 9... O-O-O
{[%clk 0:02:04.6]} 10. Nc3 {[%clk 0:02:07.1]} 10... a6 {[%clk 0:01:56]} 11. Be3
{[%clk 0:01:59]} 11... Be6 {[%clk 0:01:48.7]} 12. Bc4 {[%clk 0:01:56]} 12... Bg4
{[%clk 0:01:38.6]} 13. d5 {[%clk 0:01:50.4]} 13... Nb4 {[%clk 0:01:23.2]} 14.
O-O-O {[%clk 0:01:42.5]} 14... Ne7 {[%clk 0:01:07.6]} 15. Rhe1 {[%clk
0:01:28.5]} 15... Nf5 {[%clk 0:01:04.7]} 16. Bf4 {[%clk 0:01:19.7]} 16... g5
{[%clk 0:00:53.7]} 17. Bg3 {[%clk 0:01:13.8]} 17... h5 {[%clk 0:00:51.4]} 18. h3
{[%clk 0:01:00.1]} 18... Bxf3 {[%clk 0:00:42.3]} 19. gxf3 {[%clk 0:01:01]} 19...
h4 {[%clk 0:00:36.2]} 20. Bh2 {[%clk 0:01:00.9]} 20... Bc5 {[%clk 0:00:36.4]}
21. Ne4 {[%clk 0:00:59]} 21... Bb6 {[%clk 0:00:17.7]} 22. d6 {[%clk 0:00:53.1]}
22... Nxd6 {[%clk 0:00:13.6]} 23. Bxd6 {[%clk 0:00:45.4]} 23... cxd6 {[%clk
0:00:14]} 24. Nxf6 {[%clk 0:00:45.5]} 24... d5 {[%clk 0:00:12.9]} 25. Bxd5
{[%clk 0:00:41.9]} 25... Bxf2 {[%clk 0:00:11.6]} 26. Re7 {[%clk 0:00:37.3]}
26... Nxd5 {[%clk 0:00:05.6]} 27. Nxd5 {[%clk 0:00:36.4]} 27... Rhe8 {[%clk
0:00:04.1]} 28. Kc2 {[%clk 0:00:26.7]} 28... Rxe7 {[%clk 0:00:04]} 29. Nxe7+
{[%clk 0:00:26.2]} 29... Kc7 {[%clk 0:00:03.1]} 30. Rxd8 {[%clk 0:00:25.2]}
30... Kxd8 {[%clk 0:00:04]} 31. Nf5 {[%clk 0:00:20.8]} 31... Bc5 {[%clk
0:00:03.9]} 32. Kd3 {[%clk 0:00:20.7]} 32... Kd7 {[%clk 0:00:04]} 33. Kc4 {[%clk
0:00:20.2]} 33... Bf2 {[%clk 0:00:03.9]} 34. Kd5 {[%clk 0:00:20.1]} 34... Be1
{[%clk 0:00:02]} 35. Nd4 {[%clk 0:00:17.2]} 35... Bd2 {[%clk 0:00:02]} 36. Ne6
{[%clk 0:00:16.2]} 36... Bc1 {[%clk 0:00:02.2]} 37. Nc5+ {[%clk 0:00:15.8]}
37... Kc7 {[%clk 0:00:02.4]} 38. Nd3 {[%clk 0:00:15.7]} 38... Bd2 {[%clk
0:00:02.3]} 39. Ke6 {[%clk 0:00:15.6]} 39... b5 {[%clk 0:00:02.5]} 40. Kf5
{[%clk 0:00:15.4]} 40... Kc6 {[%clk 0:00:03.1]} 41. Ne5+ {[%clk 0:00:15.3]}
41... Kd5 {[%clk 0:00:03.3]} 42. Nf7 {[%clk 0:00:15]} 42... a5 {[%clk
0:00:03.2]} 43. Nxg5 {[%clk 0:00:15.1]} 43... Bc1 {[%clk 0:00:01.7]} 44. Ne6
{[%clk 0:00:14.7]} 44... Bxb2 {[%clk 0:00:01.8]} 45. Nc7+ {[%clk 0:00:14.8]}
45... Kc6 {[%clk 0:00:01.2]} 46. Ne6 {[%clk 0:00:14.4]} 46... a4 {[%clk
0:00:01.2]} 47. bxa4 {[%clk 0:00:14.5]} 47... bxa4 {[%clk 0:00:01.6]} 48. Nf4
{[%clk 0:00:12.9]} 48... a3 {[%clk 0:00:01.7]} 49. Nd3 {[%clk 0:00:13.1]} 1-0

[Event "Late-Titled-Tuesday-Blitz-March-05-2024"]
[Site "Chess.com"]
[Date "2024.03.05"]
[Round "5"]
[White "SnekkerAndersen"]
[Black "mishanick"]
[Result "0-1"]
[WhiteElo "2706"]
[BlackElo "3072"]
[TimeControl "180+1"]
[EndTime "14:55:41 PST"]
[Termination "mishanick won on time"]

1. d4 {[%clk 0:02:52.3]} 1... Nf6 {[%clk 0:02:59.6]} 2. c4 {[%clk 0:02:52.9]}
2... e6 {[%clk 0:03:00.2]} 3. Nf3 {[%clk 0:02:52.6]} 3... d5 {[%clk 0:03:01.1]}
4. g3 {[%clk 0:02:52.8]} 4... Be7 {[%clk 0:03:00.8]} 5. Bg2 {[%clk 0:02:53]}
5... O-O {[%clk 0:03:00.7]} 6. O-O {[%clk 0:02:53.7]} 6... dxc4 {[%clk
0:03:01.4]} 7. Qc2 {[%clk 0:02:54.2]} 7... a6 {[%clk 0:03:01.2]} 8. a4 {[%clk
0:02:54.7]} 8... Bd7 {[%clk 0:03:01.4]} 9. Qxc4 {[%clk 0:02:55.2]} 9... b5
{[%clk 0:03:01.6]} 10. Qc2 {[%clk 0:02:47.9]} 10... Nc6 {[%clk 0:03:01.8]} 11.
Bg5 {[%clk 0:02:26.3]} 11... bxa4 {[%clk 0:02:49.3]} 12. Nc3 {[%clk 0:02:20.3]}
12... Nb4 {[%clk 0:02:42.8]} 13. Qd2 {[%clk 0:02:20.3]} 13... Bc6 {[%clk
0:02:37.3]} 14. Nxa4 {[%clk 0:02:16.8]} 14... Ne4 {[%clk 0:02:29.3]} 15. Bxe7
{[%clk 0:02:16.7]} 15... Qxe7 {[%clk 0:02:24.1]} 16. Qc1 {[%clk 0:02:08]} 16...
Nf6 {[%clk 0:02:10.7]} 17. Qc5 {[%clk 0:02:02.7]} 17... Qxc5 {[%clk 0:02:10.4]}
18. Nxc5 {[%clk 0:02:03.6]} 18... a5 {[%clk 0:02:10.9]} 19. Ne5 {[%clk
0:02:03.2]} 19... Bxg2 {[%clk 0:02:07.3]} 20. Kxg2 {[%clk 0:02:04.1]} 20... Nfd5
{[%clk 0:01:52.7]} 21. e3 {[%clk 0:02:03.2]} 21... Nb6 {[%clk 0:01:47]} 22. Rfc1
{[%clk 0:01:58.4]} 22... Rfc8 {[%clk 0:01:34.1]} 23. b3 {[%clk 0:01:55.6]} 23...
c6 {[%clk 0:01:29.2]} 24. Ncd3 {[%clk 0:01:48.1]} 24... Nxd3 {[%clk 0:01:10]}
25. Nxd3 {[%clk 0:01:47.1]} 25... Nd7 {[%clk 0:01:09.3]} 26. Nc5 {[%clk
0:01:26.6]} 26... Nb6 {[%clk 0:01:09.2]} 27. Ne4 {[%clk 0:01:20.2]} 27... Kf8
{[%clk 0:01:01.3]} 28. Rc5 {[%clk 0:01:19.2]} 28... a4 {[%clk 0:01:01.6]} 29.
bxa4 {[%clk 0:01:17.9]} 29... Nxa4 {[%clk 0:01:02.1]} 30. Rc2 {[%clk 0:01:14]}
30... Ra6 {[%clk 0:00:52]} 31. Rac1 {[%clk 0:01:08.4]} 31... Ke7 {[%clk
0:00:46.6]} 32. h4 {[%clk 0:01:09]} 32... h6 {[%clk 0:00:46.5]} 33. g4 {[%clk
0:01:05]} 33... Kd7 {[%clk 0:00:45]} 34. Ra2 {[%clk 0:01:03.5]} 34... Rca8
{[%clk 0:00:39.7]} 35. g5 {[%clk 0:00:57.8]} 35... hxg5 {[%clk 0:00:36.5]} 36.
hxg5 {[%clk 0:00:58.7]} 36... Kc7 {[%clk 0:00:36.8]} 37. Rh1 {[%clk 0:00:55.3]}
37... Nc5 {[%clk 0:00:30.1]} 38. Rxa6 {[%clk 0:00:47.6]} 38... Nxa6 {[%clk
0:00:31]} 39. Ra1 {[%clk 0:00:38.5]} 39... Kb6 {[%clk 0:00:23.4]} 40. Nc5 {[%clk
0:00:30.6]} 40... Ra7 {[%clk 0:00:15.8]} 41. g6 {[%clk 0:00:09.9]} 41... fxg6
{[%clk 0:00:14.7]} 42. Rb1+ {[%clk 0:00:08.5]} 42... Kc7 {[%clk 0:00:13.3]} 43.
Nxe6+ {[%clk 0:00:08.3]} 43... Kd6 {[%clk 0:00:13.7]} 44. Nf4 {[%clk 0:00:08.3]}
44... g5 {[%clk 0:00:13.3]} 45. Nh3 {[%clk 0:00:06.9]} 45... g4 {[%clk
0:00:13.7]} 46. Nf4 {[%clk 0:00:07.4]} 46... Nc7 {[%clk 0:00:13]} 47. Kg3 {[%clk
0:00:07.9]} 47... Ra2 {[%clk 0:00:12.7]} 48. Rh1 {[%clk 0:00:07]} 48... Nb5
{[%clk 0:00:11.4]} 49. Rh4 {[%clk 0:00:06.5]} 49... Nc3 {[%clk 0:00:11.7]} 50.
Rxg4 {[%clk 0:00:05.6]} 50... Ne4+ {[%clk 0:00:12.4]} 51. Kf3 {[%clk 0:00:05.8]}
51... Nd2+ {[%clk 0:00:13.1]} 52. Kg2 {[%clk 0:00:03.4]} 52... Ne4 {[%clk
0:00:13.3]} 53. Nh3 {[%clk 0:00:03.9]} 53... Kd5 {[%clk 0:00:11.8]} 54. Rxg7
{[%clk 0:00:04.2]} 54... Nc3 {[%clk 0:00:11.7]} 55. Rg5+ {[%clk 0:00:03.8]}
55... Kd6 {[%clk 0:00:12.1]} 56. Nf4 {[%clk 0:00:02.2]} 56... Nd1 {[%clk
0:00:12.6]} 0-1

[Event "Late-Titled-Tuesday-Blitz-March-05-2024"]
[Site "Chess.com"]
[Date "2024.03.05"]
[Round "5"]
[White "Ze-Pequeno"]
[Black "Kgutierrez95"]
[Result "1-0"]
[WhiteElo "2315"]
[BlackElo "2190"]
[TimeControl "180+1"]
[EndTime "14:55:41 PST"]
[Termination "Ze-Pequeno won on time"]

1. e4 {[%clk 0:02:51.6]} 1... c5 {[%clk 0:02:56.4]} 2. Nf3 {[%clk 0:02:50]} 2...
d6 {[%clk 0:02:54]} 3. d4 {[%clk 0:02:47.4]} 3... cxd4 {[%clk 0:02:53.4]} 4.
Nxd4 {[%clk 0:02:48.3]} 4... Nf6 {[%clk 0:02:52.7]} 5. Nc3 {[%clk 0:02:48.4]}
5... g6 {[%clk 0:02:52.3]} 6. Be3 {[%clk 0:02:48.1]} 6... Bg7 {[%clk 0:02:51.9]}
7. f3 {[%clk 0:02:48.4]} 7... O-O {[%clk 0:02:49.7]} 8. Qd2 {[%clk 0:02:48.7]}
8... Nc6 {[%clk 0:02:47.8]} 9. O-O-O {[%clk 0:02:48.8]} 9... d5 {[%clk
0:02:38.9]} 10. exd5 {[%clk 0:02:49.7]} 10... Nxd5 {[%clk 0:02:38.3]} 11. Nxc6
{[%clk 0:02:50.6]} 11... bxc6 {[%clk 0:02:33.4]} 12. Bd4 {[%clk 0:02:50.5]}
12... Be6 {[%clk 0:02:21.6]} 13. Bxg7 {[%clk 0:02:45.3]} 13... Kxg7 {[%clk
0:02:20.8]} 14. Ne4 {[%clk 0:02:42.4]} 14... Qb6 {[%clk 0:02:11.6]} 15. h4
{[%clk 0:02:31.6]} 15... h5 {[%clk 0:02:00.4]} 16. c4 {[%clk 0:02:22.5]} 16...
Nb4 {[%clk 0:01:55.8]} 17. a3 {[%clk 0:02:04.2]} 17... Na6 {[%clk 0:01:40.5]}
18. Qc3+ {[%clk 0:01:50.5]} 18... f6 {[%clk 0:01:36.3]} 19. Bd3 {[%clk
0:01:48.2]} 19... Nc5 {[%clk 0:01:30.9]} 20. Nxc5 {[%clk 0:01:41.6]} 20... Qxc5
{[%clk 0:01:31.8]} 21. Rhe1 {[%clk 0:01:41.5]} 21... Bf7 {[%clk 0:01:16.7]} 22.
b4 {[%clk 0:01:37.5]} 22... Qd6 {[%clk 0:01:16.4]} 23. Kb2 {[%clk 0:01:24.7]}
23... Qc7 {[%clk 0:01:10.8]} 24. g4 {[%clk 0:01:13.6]} 24... hxg4 {[%clk
0:01:04.8]} 25. fxg4 {[%clk 0:01:12.9]} 25... Rh8 {[%clk 0:00:44.9]} 26. Rh1
{[%clk 0:00:59.2]} 26... Qg3 {[%clk 0:00:32]} 27. Rdg1 {[%clk 0:00:58]} 27...
Qf2+ {[%clk 0:00:28.7]} 28. Qc2 {[%clk 0:00:58.6]} 28... Qxc2+ {[%clk
0:00:26.5]} 29. Kxc2 {[%clk 0:00:58.2]} 29... Rad8 {[%clk 0:00:23.2]} 30. g5
{[%clk 0:00:53.6]} 30... f5 {[%clk 0:00:20.3]} 31. Kc3 {[%clk 0:00:43.1]} 31...
e5 {[%clk 0:00:20.3]} 32. h5 {[%clk 0:00:42]} 32... e4 {[%clk 0:00:20.4]} 33.
h6+ {[%clk 0:00:42.5]} 33... Kh7 {[%clk 0:00:19.8]} 34. Be2 {[%clk 0:00:41.9]}
34... Rhe8 {[%clk 0:00:19.8]} 35. Rf1 {[%clk 0:00:35.3]} 35... Re7 {[%clk
0:00:17.8]} 36. Rd1 {[%clk 0:00:19.8]} 36... Rxd1 {[%clk 0:00:14.3]} 37. Rxd1
{[%clk 0:00:20.4]} 37... f4 {[%clk 0:00:15.1]} 38. Rf1 {[%clk 0:00:21]} 38... f3
{[%clk 0:00:14.9]} 39. Bxf3 {[%clk 0:00:21.6]} 39... exf3 {[%clk 0:00:14.5]} 40.
Rxf3 {[%clk 0:00:22.5]} 40... Be6 {[%clk 0:00:14.6]} 41. Rf6 {[%clk 0:00:22.4]}
41... Bf5 {[%clk 0:00:14.3]} 42. Rxc6 {[%clk 0:00:21.9]} 42... Rd7 {[%clk
0:00:13.6]} 43. b5 {[%clk 0:00:20.4]} 43... Be4 {[%clk 0:00:05.5]} 44. Re6
{[%clk 0:00:19.5]} 44... Bf5 {[%clk 0:00:05.3]} 45. Ra6 {[%clk 0:00:19.3]} 45...
Kg8 {[%clk 0:00:01.8]} 46. c5 {[%clk 0:00:15.6]} 46... Kh7 {[%clk 0:00:02.7]}
47. c6 {[%clk 0:00:15.8]} 47... Rc7 {[%clk 0:00:03.3]} 48. Kd4 {[%clk
0:00:15.8]} 48... Re7 {[%clk 0:00:02.6]} 49. a4 {[%clk 0:00:15]} 49... Kg8
{[%clk 0:00:02.9]} 50. Kc5 {[%clk 0:00:14.6]} 50... Kf7 {[%clk 0:00:02.7]} 51.
a5 {[%clk 0:00:14.9]} 51... Ke6 {[%clk 0:00:01.6]} 52. b6 {[%clk 0:00:14.6]}
52... Ke5 {[%clk 0:00:02.5]} 53. Rxa7 {[%clk 0:00:14.2]} 1-0

[Event "Late-Titled-Tuesday-Blitz-March-05-2024"]
[Site "Chess.com"]
[Date "2024.03.05"]
[Round "5"]
[White "Irishchessman16"]
[Black "OverallStranger"]
[Result "1-0"]
[WhiteElo "2536"]
[BlackElo "2372"]
[TimeControl "180+1"]
[EndTime "14:55:44 PST"]
[Termination "Irishchessman16 won by checkmate"]

1. e4 {[%clk 0:03:00.9]} 1... c5 {[%clk 0:02:59.3]} 2. Nf3 {[%clk 0:02:59.9]}
2... Nc6 {[%clk 0:02:59.2]} 3. d4 {[%clk 0:02:59.7]} 3... cxd4 {[%clk
0:02:59.6]} 4. Nxd4 {[%clk 0:02:58.7]} 4... g6 {[%clk 0:03:00.2]} 5. Nxc6 {[%clk
0:02:51]} 5... bxc6 {[%clk 0:03:00]} 6. Qd4 {[%clk 0:02:51.6]} 6... Nf6 {[%clk
0:03:00.2]} 7. e5 {[%clk 0:02:52.3]} 7... Nd5 {[%clk 0:03:00.7]} 8. c4 {[%clk
0:02:52.1]} 8... Nb4 {[%clk 0:02:59.3]} 9. Qd2 {[%clk 0:02:50.3]} 9... Na6
{[%clk 0:02:53.7]} 10. Nc3 {[%clk 0:02:44.4]} 10... Bg7 {[%clk 0:02:54]} 11. Be2
{[%clk 0:02:37.7]} 11... Bxe5 {[%clk 0:02:53.4]} 12. Qh6 {[%clk 0:02:36.8]}
12... d6 {[%clk 0:02:46.1]} 13. O-O {[%clk 0:02:29.6]} 13... Nc5 {[%clk
0:02:44.2]} 14. Bf4 {[%clk 0:02:28.4]} 14... Bxf4 {[%clk 0:02:42.1]} 15. Qxf4
{[%clk 0:02:27.1]} 15... O-O {[%clk 0:02:42.9]} 16. h4 {[%clk 0:02:26.5]} 16...
h5 {[%clk 0:02:37.5]} 17. Bxh5 {[%clk 0:02:20.1]} 17... Ne6 {[%clk 0:01:12.3]}
18. Qg3 {[%clk 0:01:57.8]} 18... Qa5 {[%clk 0:01:11.9]} 19. Bf3 {[%clk 0:01:53]}
19... Rb8 {[%clk 0:01:01.5]} 20. Rab1 {[%clk 0:01:49.5]} 20... Ba6 {[%clk
0:00:56.4]} 21. Bxc6 {[%clk 0:01:43.1]} 21... Bxc4 {[%clk 0:00:45.8]} 22. Rfe1
{[%clk 0:01:43.2]} 22... Nd4 {[%clk 0:00:44.6]} 23. Be4 {[%clk 0:01:38.7]} 23...
Nf5 {[%clk 0:00:36.6]} 24. Bxf5 {[%clk 0:01:35.6]} 24... Qxf5 {[%clk 0:00:37.5]}
25. Rxe7 {[%clk 0:01:34.6]} 25... Bxa2 {[%clk 0:00:36.7]} 26. Ra1 {[%clk
0:01:30.7]} 26... Rxb2 {[%clk 0:00:35.4]} 27. Rxa2 {[%clk 0:01:23.5]} 27... Rxa2
{[%clk 0:00:34.2]} 28. Nxa2 {[%clk 0:01:24.4]} 28... Qb1+ {[%clk 0:00:34.6]} 29.
Kh2 {[%clk 0:01:24.4]} 29... Qxa2 {[%clk 0:00:35.1]} 30. h5 {[%clk 0:01:23.5]}
30... Qd5 {[%clk 0:00:27.9]} 31. hxg6 {[%clk 0:01:21.6]} 31... Qh5+ {[%clk
0:00:27.9]} 32. Qh3 {[%clk 0:01:15.9]} 32... Qxh3+ {[%clk 0:00:20]} 33. Kxh3
{[%clk 0:01:09.6]} 33... fxg6 {[%clk 0:00:20.9]} 34. Kg3 {[%clk 0:00:58.6]}
34... Rf7 {[%clk 0:00:20.8]} 35. Re6 {[%clk 0:00:58.7]} 35... Rd7 {[%clk
0:00:21.1]} 36. Rxg6+ {[%clk 0:00:58.6]} 36... Kf7 {[%clk 0:00:22]} 37. Rg4
{[%clk 0:00:58.7]} 37... d5 {[%clk 0:00:22.2]} 38. Rd4 {[%clk 0:00:58.5]} 38...
Ke6 {[%clk 0:00:22.8]} 39. Kf4 {[%clk 0:00:58.8]} 39... Kd6 {[%clk 0:00:22.9]}
40. g4 {[%clk 0:00:57.9]} 40... Kc5 {[%clk 0:00:23.3]} 41. Rd1 {[%clk
0:00:57.6]} 41... d4 {[%clk 0:00:22.5]} 42. g5 {[%clk 0:00:58.1]} 42... Kc4
{[%clk 0:00:20.6]} 43. g6 {[%clk 0:00:56.8]} 43... d3 {[%clk 0:00:19.6]} 44. Kg5
{[%clk 0:00:55.5]} 44... Kc3 {[%clk 0:00:19.4]} 45. f4 {[%clk 0:00:52.9]} 45...
Kc2 {[%clk 0:00:19.8]} 46. Rh1 {[%clk 0:00:51.2]} 46... d2 {[%clk 0:00:17.3]}
47. f5 {[%clk 0:00:50.6]} 47... Re7 {[%clk 0:00:08.2]} 48. Rh2 {[%clk
0:00:46.7]} 48... Kc3 {[%clk 0:00:08]} 49. Rxd2 {[%clk 0:00:45]} 49... Kxd2
{[%clk 0:00:08.3]} 50. f6 {[%clk 0:00:45.2]} 50... Re1 {[%clk 0:00:08.2]} 51. f7
{[%clk 0:00:40.2]} 51... Rf1 {[%clk 0:00:08.4]} 52. g7 {[%clk 0:00:38.4]} 52...
Rxf7 {[%clk 0:00:07.4]} 53. g8=Q {[%clk 0:00:38]} 53... Rf1 {[%clk 0:00:07.7]}
54. Qd8+ {[%clk 0:00:35.4]} 54... Ke1 {[%clk 0:00:07.4]} 55. Qe7+ {[%clk
0:00:34.6]} 55... Kf2 {[%clk 0:00:08]} 56. Qxa7+ {[%clk 0:00:34.2]} 56... Ke2
{[%clk 0:00:08.8]} 57. Kg4 {[%clk 0:00:32.4]} 57... Rd1 {[%clk 0:00:07.1]} 58.
Qc5 {[%clk 0:00:30.6]} 58... Rd3 {[%clk 0:00:06.9]} 59. Kf4 {[%clk 0:00:30.2]}
59... Kd2 {[%clk 0:00:07.8]} 60. Ke4 {[%clk 0:00:30.1]} 60... Rc3 {[%clk
0:00:05.7]} 61. Qb4 {[%clk 0:00:29.3]} 61... Kc2 {[%clk 0:00:06.1]} 62. Qb5
{[%clk 0:00:29.2]} 62... Kc1 {[%clk 0:00:05.1]} 63. Kd4 {[%clk 0:00:28.3]} 63...
Rc2 {[%clk 0:00:05.5]} 64. Qb4 {[%clk 0:00:26.7]} 64... Rd2+ {[%clk 0:00:05.1]}
65. Ke3 {[%clk 0:00:25.6]} 65... Rc2 {[%clk 0:00:02.3]} 66. Kd3 {[%clk
0:00:25.8]} 66... Rb2 {[%clk 0:00:01.2]} 67. Qe1# {[%clk 0:00:25.4]} 1-0